[Event "FIDE Grand Swiss 2023"]
[Site "Villa Marina, Douglas, Isle of Man, Isle Of Man"]
[Date "2023.11.05"]
[Round "11.1"]
[White "Erigaisi, Arjun"]
[Black "Nakamura, Hikaru"]
[Result "1/2-1/2"]
[TimeControl "40/90 + 30 + 30s/move"]
[WhiteFideId "35009192"]
[BlackFideId "2016192"]
[WhiteElo "2712"]
[BlackElo "2780"]

1. e4 {[%clk 01:40:09]} {[%emt 00:00:49]} c5 {[%clk 01:40:53]} {[%emt
00:00:07]} 2. Nf3 {[%clk 01:40:34]} {[%emt 00:00:06]} Nc6 {[%clk 01:41:19]}
{[%emt 00:00:04]} 3. d4 {[%clk 01:40:59]} {[%emt 00:00:05]} cxd4 {[%clk
01:41:40]} {[%emt 00:00:09]} 4. Nxd4 {[%clk 01:41:24]} {[%emt 00:00:05]} e5
{[%clk 01:41:55]} {[%emt 00:00:15]} 5. Nb5 {[%clk 01:41:38]} {[%emt 00:00:15]}
d6 {[%clk 01:42:19]} {[%emt 00:00:06]} 6. N1a3 {[%clk 01:41:30]} {[%emt
00:00:39]} a6 {[%clk 01:41:48]} {[%emt 00:01:01]} 7. Nc3 {[%clk 01:41:53]}
{[%emt 00:00:06]} Be6 {[%clk 01:41:58]} {[%emt 00:00:20]} 8. Nc4 {[%clk
01:41:34]} {[%emt 00:00:49]} Nf6 {[%clk 01:41:17]} {[%emt 00:01:12]} 9. a4
{[%clk 01:40:58]} {[%emt 00:01:06]} Rc8 {[%clk 01:40:06]} {[%emt 00:01:40]} 10.
Bg5 {[%clk 01:25:37]} {[%emt 00:15:52]} Nb4 {[%clk 01:39:50]} {[%emt 00:00:46]}
11. Ne3 {[%clk 01:13:33]} {[%emt 00:12:34]} Be7 {[%clk 01:39:49]} {[%emt
00:00:31]} 12. Be2 {[%clk 01:02:34]} {[%emt 00:11:29]} Ng4 {[%clk 01:38:11]}
{[%emt 00:02:07]} 13. Bxg4 {[%clk 00:54:22]} {[%emt 00:08:43]} Bxg5 {[%clk
01:38:15]} {[%emt 00:00:26]} 14. Bxe6 {[%clk 00:51:54]} {[%emt 00:02:58]} fxe6
{[%clk 01:38:14]} {[%emt 00:00:31]} 15. Qg4 {[%clk 00:46:42]} {[%emt 00:05:42]}
Qf6 {[%clk 01:31:25]} {[%emt 00:07:19]} 16. O-O {[%clk 00:37:24]} {[%emt
00:09:48]} O-O {[%clk 01:31:15]} {[%emt 00:00:41]} 17. Rad1 {[%clk 00:37:48]}
{[%emt 00:00:06]} Qe7 {[%clk 01:21:25]} {[%emt 00:10:19]} 18. Qe2 {[%clk
00:32:57]} {[%emt 00:05:21]} Nc6 {[%clk 01:05:10]} {[%emt 00:16:45]} 19. Qd3
{[%clk 00:32:36]} {[%emt 00:00:51]} Nd4 {[%clk 01:02:59]} {[%emt 00:02:41]} 20.
Ne2 {[%clk 00:29:42]} {[%emt 00:03:22]} Bxe3 {[%clk 00:54:01]} {[%emt
00:09:30]} 21. fxe3 {[%clk 00:29:53]} {[%emt 00:00:18]} Rxf1+ {[%clk 00:54:27]}
{[%emt 00:00:05]} 22. Rxf1 {[%clk 00:30:17]} {[%emt 00:00:05]} Nc6 {[%clk
00:54:54]} {[%emt 00:00:03]} 23. Qd2 {[%clk 00:26:52]} {[%emt 00:03:55]} Rd8
{[%clk 00:53:03]} {[%emt 00:02:21]} 24. Qc3 {[%clk 00:23:16]} {[%emt 00:04:06]}
Qc7 {[%clk 00:38:59]} {[%emt 00:14:34]} 25. Rd1 {[%clk 00:18:13]} {[%emt
00:05:33]} Qb6 {[%clk 00:38:31]} {[%emt 00:00:58]} 26. Rd3 {[%clk 00:16:45]}
{[%emt 00:01:57]} Qb4 {[%clk 00:34:43]} {[%emt 00:04:18]} 27. Qxb4 {[%clk
00:17:03]} {[%emt 00:00:12]} Nxb4 {[%clk 00:35:12]} {[%emt 00:00:02]} 28. Rc3
{[%clk 00:15:03]} {[%emt 00:02:30]} Nc6 {[%clk 00:33:44]} {[%emt 00:01:58]} 29.
Nc1 {[%clk 00:14:12]} {[%emt 00:01:21]} Kf8 {[%clk 00:33:36]} {[%emt 00:00:37]}
30. Nd3 {[%clk 00:14:34]} {[%emt 00:00:08]} Ke8 {[%clk 00:31:28]} {[%emt
00:02:38]} 31. b4 {[%clk 00:12:19]} {[%emt 00:02:46]} Rc8 {[%clk 00:21:28]}
{[%emt 00:10:30]} 32. a5 {[%clk 00:11:27]} {[%emt 00:01:22]} Kd7 {[%clk
00:20:08]} {[%emt 00:01:50]} 33. Kf1 {[%clk 00:11:44]} {[%emt 00:00:13]} Rb8
{[%clk 00:15:37]} {[%emt 00:05:01]} 34. Ke2 {[%clk 00:10:27]} {[%emt 00:01:46]}
b6 {[%clk 00:15:08]} {[%emt 00:01:00]} 35. axb6 {[%clk 00:09:43]} {[%emt
00:01:14]} Rxb6 {[%clk 00:15:38]} 36. Rb3 {[%clk 00:10:06]} {[%emt 00:00:06]}
d5 {[%clk 00:15:27]} {[%emt 00:00:41]} 37. c3 {[%clk 00:07:37]} {[%emt
00:02:59]} Kd6 {[%clk 00:12:56]} {[%emt 00:03:01]} 38. Ra3 {[%clk 00:05:10]}
{[%emt 00:02:57]} a5 {[%clk 00:11:10]} {[%emt 00:02:15]} 39. bxa5 {[%clk
00:04:29]} {[%emt 00:01:11]} 1/2-1/2

[Event "FIDE Grand Swiss 2023"]
[Site "Villa Marina, Douglas, Isle of Man, Isle Of Man"]
[Date "2023.11.05"]
[Round "11.2"]
[White "Vidit, Santosh Gujrathi"]
[Black "Predke, Alexandr"]
[Result "1-0"]
[TimeControl "40/90 + 30 + 30s/move"]
[WhiteFideId "5029465"]
[BlackFideId "24107581"]
[WhiteElo "2716"]
[BlackElo "2656"]

1. d4 {[%clk 01:40:05]} {[%emt 00:00:54]} d5 {[%clk 01:38:50]} {[%emt
00:02:11]} 2. c4 {[%clk 01:40:16]} {[%emt 00:00:19]} dxc4 {[%clk 01:38:53]}
{[%emt 00:00:27]} 3. Nf3 {[%clk 01:40:16]} {[%emt 00:00:30]} Nf6 {[%clk
01:39:00]} {[%emt 00:00:23]} 4. e3 {[%clk 01:40:35]} {[%emt 00:00:11]} e6
{[%clk 01:39:11]} {[%emt 00:00:20]} 5. Bxc4 {[%clk 01:40:55]} {[%emt 00:00:09]}
a6 {[%clk 01:39:19]} {[%emt 00:00:22]} 6. O-O {[%clk 01:39:21]} {[%emt
00:02:03]} c5 {[%clk 01:39:22]} {[%emt 00:00:28]} 7. dxc5 {[%clk 01:29:17]}
{[%emt 00:10:34]} Bxc5 {[%clk 01:39:12]} {[%emt 00:00:40]} 8. Qxd8+ {[%clk
01:29:25]} {[%emt 00:00:22]} Kxd8 {[%clk 01:39:36]} {[%emt 00:00:05]} 9. Be2
{[%clk 01:29:47]} {[%emt 00:00:09]} Ke7 {[%clk 01:39:23]} {[%emt 00:00:43]} 10.
Nbd2 {[%clk 01:23:55]} {[%emt 00:06:21]} Bd7 {[%clk 01:38:30]} {[%emt
00:01:23]} 11. Nb3 {[%clk 01:20:17]} {[%emt 00:04:08]} Bb6 {[%clk 01:31:06]}
{[%emt 00:07:54]} 12. Bd2 {[%clk 01:14:31]} {[%emt 00:06:16]} Nc6 {[%clk
01:30:17]} {[%emt 00:01:18]} 13. Bc3 {[%clk 01:11:12]} {[%emt 00:03:50]} Rhg8
{[%clk 01:15:30]} {[%emt 00:15:17]} 14. Rfd1 {[%clk 01:03:37]} {[%emt
00:08:05]} Rad8 {[%clk 00:50:28]} {[%emt 00:25:32]} 15. Rac1 {[%clk 00:57:48]}
{[%emt 00:06:19]} g5 {[%clk 00:46:50]} {[%emt 00:04:08]} 16. Nfd4 {[%clk
00:52:24]} {[%emt 00:05:54]} Nxd4 {[%clk 00:33:40]} {[%emt 00:13:41]} 17. Bb4+
{[%clk 00:52:41]} {[%emt 00:00:13]} Ke8 {[%clk 00:34:07]} {[%emt 00:00:03]} 18.
Nxd4 {[%clk 00:52:57]} {[%emt 00:00:14]} g4 {[%clk 00:34:10]} {[%emt 00:00:26]}
19. Nb3 {[%clk 00:48:25]} {[%emt 00:05:01]} Rg5 {[%clk 00:28:40]} {[%emt
00:06:01]} 20. Nc5 {[%clk 00:33:10]} {[%emt 00:15:45]} Bc6 {[%clk 00:18:29]}
{[%emt 00:10:41]} 21. Nxa6 {[%clk 00:20:16]} {[%emt 00:13:24]} Nd7 {[%clk
00:14:27]} {[%emt 00:04:32]} 22. Bf1 {[%clk 00:11:14]} {[%emt 00:09:32]} Ra8
{[%clk 00:07:47]} {[%emt 00:07:10]} 23. Bd6 {[%clk 00:07:43]} {[%emt 00:04:00]}
Ba4 {[%clk 00:04:32]} {[%emt 00:03:46]} 24. Bf4 {[%clk 00:07:12]} {[%emt
00:01:01]} Ra5 {[%clk 00:03:46]} {[%emt 00:01:17]} 25. Nc7+ {[%clk 00:05:52]}
{[%emt 00:01:50]} Bxc7 {[%clk 00:04:07]} {[%emt 00:00:09]} 26. Bxc7 {[%clk
00:06:19]} {[%emt 00:00:03]} Bxd1 {[%clk 00:03:53]} {[%emt 00:00:45]} 27. Bxa5
{[%clk 00:06:46]} {[%emt 00:00:02]} Rxa5 {[%clk 00:03:11]} {[%emt 00:01:12]} 28.
Rxd1 {[%clk 00:07:15]} {[%emt 00:00:01]} Ne5 {[%clk 00:03:35]} {[%emt
00:00:06]} 29. a4 {[%clk 00:07:00]} {[%emt 00:00:45]} Rc5 {[%clk 00:03:57]}
{[%emt 00:00:08]} 30. Rd4 {[%clk 00:03:08]} {[%emt 00:04:21]} Rc1 {[%clk
00:03:02]} {[%emt 00:01:27]} 31. Rb4 {[%clk 00:03:28]} {[%emt 00:00:10]} Rb1
{[%clk 00:01:30]} {[%emt 00:02:02]} 32. f4 {[%clk 00:02:34]} {[%emt 00:01:23]}
gxf3 {[%clk 00:01:39]} {[%emt 00:00:21]} 33. gxf3 {[%clk 00:03:02]} {[%emt
00:00:03]} Nxf3+ {[%clk 00:01:49]} {[%emt 00:00:20]} 34. Kg2 {[%clk 00:03:17]}
{[%emt 00:00:14]} Nd2 {[%clk 00:00:40]} {[%emt 00:01:39]} 35. Bd3 {[%clk
00:03:32]} {[%emt 00:00:14]} Re1 {[%clk 00:00:58]} {[%emt 00:00:13]} 36. Kf2
{[%clk 00:03:22]} {[%emt 00:00:41]} Rh1 {[%clk 00:01:17]} {[%emt 00:00:11]} 37.
Kg2 {[%clk 00:01:47]} {[%emt 00:02:04]} Re1 {[%clk 00:01:43]} {[%emt 00:00:04]}
38. Rxb7 {[%clk 00:01:35]} {[%emt 00:00:43]} Rxe3 {[%clk 00:02:09]} {[%emt
00:00:03]} 39. Bb5+ {[%clk 00:02:00]} {[%emt 00:00:05]} Kf8 {[%clk 00:02:30]}
{[%emt 00:00:09]} 40. a5 {[%clk 00:02:21]} {[%emt 00:00:10]} Re5 {[%clk
00:00:32]} {[%emt 00:02:27]} 41. a6 {[%clk 00:00:45]} {[%emt 00:02:06]} Rg5+
{[%clk 00:00:43]} {[%emt 00:00:20]} 42. Kf2 {[%clk 00:50:21]} {[%emt 00:00:53]}
Ne4+ {[%clk 00:51:08]} {[%emt 00:00:05]} 43. Ke3 {[%clk 00:50:21]} {[%emt
00:00:30]} Nd6 {[%clk 00:51:21]} {[%emt 00:00:17]} 44. a7 {[%clk 00:49:45]}
{[%emt 00:01:07]} Re5+ {[%clk 00:51:47]} {[%emt 00:00:04]} 45. Kf3 {[%clk
00:49:52]} {[%emt 00:00:22]} Rf5+ {[%clk 00:52:00]} {[%emt 00:00:18]} 46. Kg2
{[%clk 00:49:57]} {[%emt 00:00:25]} Rg5+ {[%clk 00:52:23]} {[%emt 00:00:07]} 47.
Kh1 {[%clk 00:49:33]} {[%emt 00:00:53]} 1-0

[Event "FIDE Grand Swiss 2023"]
[Site "Villa Marina, Douglas, Isle of Man, Isle Of Man"]
[Date "2023.11.05"]
[Round "11.3"]
[White "Giri, Anish"]
[Black "Esipenko, Andrey"]
[Result "1-0"]
[TimeControl "40/90 + 30 + 30s/move"]
[WhiteFideId "24116068"]
[BlackFideId "24175439"]
[WhiteElo "2760"]
[BlackElo "2683"]

1. d4 {[%clk 01:40:56]} {[%emt 00:00:04]} d5 {[%clk 01:40:46]} {[%emt
00:00:15]} 2. c4 {[%clk 01:41:19]} {[%emt 00:00:05]} e6 {[%clk 01:41:04]}
{[%emt 00:00:13]} 3. Nc3 {[%clk 01:41:44]} {[%emt 00:00:06]} Be7 {[%clk
01:41:14]} {[%emt 00:00:20]} 4. cxd5 {[%clk 01:40:33]} {[%emt 00:01:40]} exd5
{[%clk 01:41:37]} {[%emt 00:00:08]} 5. Bf4 {[%clk 01:40:56]} {[%emt 00:00:07]}
Nf6 {[%clk 01:41:56]} {[%emt 00:00:11]} 6. e3 {[%clk 01:40:19]} {[%emt
00:01:07]} Bf5 {[%clk 01:41:27]} {[%emt 00:00:58]} 7. Nge2 {[%clk 01:33:17]}
{[%emt 00:07:31]} O-O {[%clk 01:41:06]} {[%emt 00:00:53]} 8. Rc1 {[%clk
01:23:53]} {[%emt 00:09:54]} c5 {[%clk 01:41:15]} {[%emt 00:00:21]} 9. dxc5
{[%clk 01:24:19]} {[%emt 00:00:04]} Bxc5 {[%clk 01:41:38]} {[%emt 00:00:06]} 10.
Nxd5 {[%clk 01:24:47]} {[%emt 00:00:03]} Nxd5 {[%clk 01:42:01]} {[%emt
00:00:07]} 11. Rxc5 {[%clk 01:25:15]} {[%emt 00:00:02]} Be6 {[%clk 01:42:24]}
{[%emt 00:00:06]} 12. Nc3 {[%clk 01:23:07]} {[%emt 00:02:39]} Nxf4 {[%clk
01:30:48]} {[%emt 00:12:05]} 13. Qxd8 {[%clk 01:23:12]} {[%emt 00:00:25]} Rxd8
{[%clk 01:31:14]} {[%emt 00:00:04]} 14. exf4 {[%clk 01:23:39]} {[%emt
00:00:03]} Nd7 {[%clk 01:31:38]} {[%emt 00:00:07]} 15. Rc7 {[%clk 01:23:14]}
{[%emt 00:00:55]} Nf6 {[%clk 01:32:00]} {[%emt 00:00:07]} 16. f3 {[%clk
01:09:53]} {[%emt 00:13:52]} h5 {[%clk 01:14:05]} {[%emt 00:18:23]} 17. Rxb7
{[%clk 00:48:33]} {[%emt 00:21:52]} Rd4 {[%clk 00:39:02]} {[%emt 00:35:33]} 18.
Be2 {[%clk 00:43:22]} {[%emt 00:05:40]} a5 {[%clk 00:19:50]} {[%emt 00:19:42]}
19. Kf2 {[%clk 00:35:46]} {[%emt 00:08:07]} Rb4 {[%clk 00:12:22]} {[%emt
00:07:58]} 20. Rb5 {[%clk 00:35:37]} {[%emt 00:00:38]} Bd7 {[%clk 00:12:46]}
{[%emt 00:00:06]} 21. a3 {[%clk 00:34:12]} {[%emt 00:01:56]} Bxb5 {[%clk
00:12:14]} {[%emt 00:01:02]} 22. axb4 {[%clk 00:34:33]} {[%emt 00:00:09]} Bxe2
{[%clk 00:12:40]} {[%emt 00:00:03]} 23. Nxe2 {[%clk 00:34:59]} {[%emt
00:00:04]} axb4 {[%clk 00:12:39]} {[%emt 00:00:32]} 24. Rd1 {[%clk 00:34:58]}
{[%emt 00:00:31]} Rc8 {[%clk 00:10:06]} {[%emt 00:03:02]} 25. Rd4 {[%clk
00:34:01]} {[%emt 00:01:28]} Rc2 {[%clk 00:09:25]} {[%emt 00:01:10]} 26. Rxb4
{[%clk 00:33:39]} {[%emt 00:00:53]} Nd5 {[%clk 00:09:04]} {[%emt 00:00:49]} 27.
Rb8+ {[%clk 00:30:41]} {[%emt 00:03:30]} Kh7 {[%clk 00:09:32]} {[%emt
00:00:02]} 28. g3 {[%clk 00:31:03]} {[%emt 00:00:07]} h4 {[%clk 00:04:56]}
{[%emt 00:05:05]} 29. Rb5 {[%clk 00:28:42]} {[%emt 00:02:52]} Nc7 {[%clk
00:05:17]} {[%emt 00:00:09]} 30. Rb7 {[%clk 00:27:49]} {[%emt 00:01:24]} f5
{[%clk 00:02:35]} {[%emt 00:03:11]} 31. Ke3 {[%clk 00:27:06]} {[%emt 00:01:13]}
Ne6 {[%clk 00:01:54]} {[%emt 00:01:11]} 32. g4 {[%clk 00:26:17]} {[%emt
00:01:20]} Kg8 {[%clk 00:00:38]} {[%emt 00:01:46]} 33. gxf5 {[%clk 00:23:26]}
{[%emt 00:03:20]} 1-0

[Event "FIDE Grand Swiss 2023"]
[Site "Villa Marina, Douglas, Isle of Man, Isle Of Man"]
[Date "2023.11.05"]
[Round "11.4"]
[White "Caruana, Fabiano"]
[Black "Keymer, Vincent"]
[Result "1/2-1/2"]
[TimeControl "40/90 + 30 + 30s/move"]
[WhiteFideId "2020009"]
[BlackFideId "12940690"]
[WhiteElo "2786"]
[BlackElo "2717"]

1. d4 {[%clk 01:40:43]} {[%emt 00:00:17]} Nf6 {[%clk 01:40:50]} {[%emt
00:00:10]} 2. c4 {[%clk 01:41:08]} {[%emt 00:00:05]} e6 {[%clk 01:41:17]}
{[%emt 00:00:04]} 3. Nc3 {[%clk 01:41:34]} {[%emt 00:00:03]} Bb4 {[%clk
01:41:43]} {[%emt 00:00:05]} 4. g3 {[%clk 01:41:58]} {[%emt 00:00:05]} Bxc3+
{[%clk 01:35:11]} {[%emt 00:07:03]} 5. bxc3 {[%clk 01:42:16]} {[%emt 00:00:12]}
d6 {[%clk 01:35:07]} {[%emt 00:00:34]} 6. Bg2 {[%clk 01:42:02]} {[%emt
00:00:43]} Nc6 {[%clk 01:34:16]} {[%emt 00:01:22]} 7. Nf3 {[%clk 01:40:42]}
{[%emt 00:01:50]} O-O {[%clk 01:33:27]} {[%emt 00:01:19]} 8. Bg5 {[%clk
01:40:57]} {[%emt 00:00:14]} e5 {[%clk 01:28:02]} {[%emt 00:05:56]} 9. h3
{[%clk 01:40:37]} {[%emt 00:00:50]} Bf5 {[%clk 01:18:48]} {[%emt 00:09:44]} 10.
g4 {[%clk 01:40:33]} {[%emt 00:00:33]} Be4 {[%clk 01:18:15]} {[%emt 00:01:03]}
11. O-O {[%clk 01:38:02]} {[%emt 00:03:01]} Kh8 {[%clk 01:05:55]} {[%emt
00:12:51]} 12. e3 {[%clk 01:32:13]} {[%emt 00:06:18]} Qe7 {[%clk 00:58:17]}
{[%emt 00:08:08]} 13. Nh4 {[%clk 01:22:26]} {[%emt 00:10:18]} h6 {[%clk
00:53:43]} {[%emt 00:05:04]} 14. Bxf6 {[%clk 00:56:36]} {[%emt 00:26:19]} Qxf6
{[%clk 00:54:09]} {[%emt 00:00:05]} 15. Bxe4 {[%clk 00:57:02]} {[%emt
00:00:03]} Qxh4 {[%clk 00:54:34]} {[%emt 00:00:04]} 16. Rb1 {[%clk 00:57:22]}
{[%emt 00:00:11]} Rae8 {[%clk 00:43:51]} {[%emt 00:11:13]} 17. Qf3 {[%clk
00:44:04]} {[%emt 00:13:48]} f5 {[%clk 00:38:20]} {[%emt 00:06:01]} 18. gxf5
{[%clk 00:42:20]} {[%emt 00:02:14]} exd4 {[%clk 00:38:46]} {[%emt 00:00:05]} 19.
Bxc6 {[%clk 00:42:47]} {[%emt 00:00:02]} bxc6 {[%clk 00:39:10]} {[%emt
00:00:06]} 20. cxd4 {[%clk 00:43:13]} {[%emt 00:00:04]} Qg5+ {[%clk 00:29:34]}
{[%emt 00:10:06]} 21. Kh2 {[%clk 00:39:09]} {[%emt 00:04:34]} Qxf5 {[%clk
00:27:10]} {[%emt 00:02:54]} 22. Qxf5 {[%clk 00:35:44]} {[%emt 00:03:55]} Rxf5
{[%clk 00:27:36]} {[%emt 00:00:04]} 23. Rb7 {[%clk 00:36:09]} {[%emt 00:00:04]}
c5 {[%clk 00:26:51]} {[%emt 00:01:16]} 24. Rxc7 {[%clk 00:35:48]} {[%emt
00:00:51]} cxd4 {[%clk 00:22:34]} {[%emt 00:04:47]} 25. exd4 {[%clk 00:36:13]}
{[%emt 00:00:05]} Re2 {[%clk 00:17:51]} {[%emt 00:05:12]} 26. Rxa7 {[%clk
00:34:57]} {[%emt 00:01:47]} Rc2 {[%clk 00:18:16]} {[%emt 00:00:05]} 27. Ra4
{[%clk 00:33:21]} {[%emt 00:02:05]} Rf4 {[%clk 00:17:39]} {[%emt 00:01:07]} 28.
d5 {[%clk 00:33:46]} {[%emt 00:00:05]} Rfxc4 {[%clk 00:13:59]} {[%emt
00:04:11]} 29. Rxc4 {[%clk 00:33:55]} {[%emt 00:00:21]} Rxc4 {[%clk 00:14:25]}
{[%emt 00:00:04]} 30. Ra1 {[%clk 00:34:21]} {[%emt 00:00:04]} Ra4 {[%clk
00:14:50]} {[%emt 00:00:05]} 31. Kg3 {[%clk 00:33:44]} {[%emt 00:01:07]} Kh7
{[%clk 00:14:59]} {[%emt 00:00:22]} 32. h4 {[%clk 00:32:43]} {[%emt 00:01:30]}
Kg6 {[%clk 00:14:55]} {[%emt 00:00:34]} 33. Re1 {[%clk 00:33:09]} {[%emt
00:00:04]} Rxa2 {[%clk 00:14:05]} {[%emt 00:01:20]} 34. Re6+ {[%clk 00:33:35]}
{[%emt 00:00:04]} Kf5 {[%clk 00:14:03]} {[%emt 00:00:32]} 35. Rxd6 {[%clk
00:34:00]} {[%emt 00:00:05]} Rd2 {[%clk 00:10:57]} {[%emt 00:03:35]} 36. Rd8
{[%clk 00:28:43]} {[%emt 00:05:48]} Rd3+ {[%clk 00:07:34]} {[%emt 00:03:53]} 37.
f3 {[%clk 00:29:05]} {[%emt 00:00:08]} g5 {[%clk 00:07:56]} {[%emt 00:00:08]}
38. d6 {[%clk 00:22:59]} {[%emt 00:06:35]} gxh4+ {[%clk 00:07:51]} {[%emt
00:00:36]} 39. Kxh4 {[%clk 00:23:25]} {[%emt 00:00:03]} Ke6 {[%clk 00:08:16]}
{[%emt 00:00:05]} 40. f4 {[%clk 00:22:54]} {[%emt 00:01:02]} Rxd6 {[%clk
00:05:20]} {[%emt 00:03:26]} 41. f5+ {[%clk 00:23:20]} {[%emt 00:00:04]} Ke5
{[%clk 00:05:42]} {[%emt 00:00:08]} 42. Rxd6 {[%clk 00:23:45]} {[%emt
00:00:05]} Kxd6 {[%clk 00:06:10]} {[%emt 00:00:02]} 43. Kh5 {[%clk 00:24:10]}
{[%emt 00:00:04]} Ke7 {[%clk 00:06:36]} {[%emt 00:00:04]} 44. Kg6 {[%clk
00:24:37]} {[%emt 00:00:03]} Kf8 {[%clk 00:07:02]} {[%emt 00:00:05]} 45. Kxh6
{[%clk 00:25:04]} {[%emt 00:00:03]} Kf7 {[%clk 00:07:28]} {[%emt 00:00:04]} 46.
f6 {[%clk 00:25:32]} {[%emt 00:00:02]} Kxf6 {[%clk 00:07:54]} {[%emt 00:00:04]}
1/2-1/2

[Event "FIDE Grand Swiss 2023"]
[Site "Villa Marina, Douglas, Isle of Man, Isle Of Man"]
[Date "2023.11.05"]
[Round "11.5"]
[White "Maghsoodloo, Parham"]
[Black "Vitiugov, Nikita"]
[Result "1-0"]
[TimeControl "40/90 + 30 + 30s/move"]
[WhiteFideId "12539929"]
[BlackFideId "4152956"]
[WhiteElo "2707"]
[BlackElo "2711"]

1. d4 {[%clk 01:40:58]} {[%emt 00:00:02]} Nf6 {[%clk 01:40:20]} {[%emt
00:00:40]} 2. c4 {[%clk 01:41:23]} {[%emt 00:00:05]} e6 {[%clk 01:40:46]}
{[%emt 00:00:05]} 3. Nc3 {[%clk 01:41:49]} {[%emt 00:00:03]} Bb4 {[%clk
01:40:51]} {[%emt 00:00:26]} 4. e3 {[%clk 01:42:14]} {[%emt 00:00:05]} c5
{[%clk 01:40:32]} {[%emt 00:00:49]} 5. Nf3 {[%clk 01:37:20]} {[%emt 00:05:24]}
Nc6 {[%clk 01:39:30]} {[%emt 00:01:32]} 6. Bd3 {[%clk 01:35:17]} {[%emt
00:02:32]} Bxc3+ {[%clk 01:39:06]} {[%emt 00:00:54]} 7. bxc3 {[%clk 01:35:42]}
{[%emt 00:00:06]} d6 {[%clk 01:39:34]} {[%emt 00:00:02]} 8. e4 {[%clk
01:29:01]} {[%emt 00:07:11]} e5 {[%clk 01:39:51]} {[%emt 00:00:13]} 9. d5
{[%clk 01:29:05]} {[%emt 00:00:26]} Ne7 {[%clk 01:40:10]} {[%emt 00:00:11]} 10.
Nd2 {[%clk 01:28:05]} {[%emt 00:01:30]} Bd7 {[%clk 01:18:19]} {[%emt 00:22:21]}
11. Nf1 {[%clk 01:14:59]} {[%emt 00:13:34]} Qa5 {[%clk 01:15:47]} {[%emt
00:03:03]} 12. Bd2 {[%clk 01:11:50]} {[%emt 00:03:39]} O-O-O {[%clk 01:11:58]}
{[%emt 00:04:20]} 13. h4 {[%clk 01:10:42]} {[%emt 00:01:37]} h5 {[%clk
01:09:18]} {[%emt 00:03:10]} 14. Rb1 {[%clk 01:01:57]} {[%emt 00:09:15]} Kb8
{[%clk 01:07:13]} {[%emt 00:02:35]} 15. Qb3 {[%clk 00:59:05]} {[%emt 00:03:23]}
Qc7 {[%clk 01:04:11]} {[%emt 00:03:32]} 16. Ng3 {[%clk 00:57:38]} {[%emt
00:01:57]} Rdf8 {[%clk 01:02:07]} {[%emt 00:02:34]} 17. Qd1 {[%clk 00:47:09]}
{[%emt 00:10:58]} Bc8 {[%clk 00:54:27]} {[%emt 00:08:10]} 18. Bg5 {[%clk
00:44:27]} {[%emt 00:03:13]} Ng4 {[%clk 00:43:47]} {[%emt 00:11:10]} 19. Be2
{[%clk 00:39:37]} {[%emt 00:05:20]} f6 {[%clk 00:41:47]} {[%emt 00:02:30]} 20.
Bd2 {[%clk 00:40:02]} {[%emt 00:00:05]} g6 {[%clk 00:37:22]} {[%emt 00:04:56]}
21. O-O {[%clk 00:35:05]} {[%emt 00:05:26]} f5 {[%clk 00:30:54]} {[%emt
00:06:58]} 22. f4 {[%clk 00:32:59]} {[%emt 00:02:35]} fxe4 {[%clk 00:29:11]}
{[%emt 00:02:14]} 23. Bxg4 {[%clk 00:18:41]} {[%emt 00:14:48]} Bxg4 {[%clk
00:28:16]} {[%emt 00:01:24]} 24. Qb3 {[%clk 00:18:36]} {[%emt 00:00:35]} e3
{[%clk 00:17:38]} {[%emt 00:11:09]} 25. Bxe3 {[%clk 00:18:31]} {[%emt
00:00:35]} Nf5 {[%clk 00:16:47]} {[%emt 00:01:21]} 26. Nxf5 {[%clk 00:18:56]}
{[%emt 00:00:05]} Rxf5 {[%clk 00:14:41]} {[%emt 00:02:36]} 27. fxe5 {[%clk
00:19:19]} {[%emt 00:00:07]} Rxe5 {[%clk 00:14:48]} {[%emt 00:00:23]} 28. Bg5
{[%clk 00:14:36]} {[%emt 00:05:13]} Rhe8 {[%clk 00:15:05]} {[%emt 00:00:13]} 29.
Rf6 {[%clk 00:14:50]} {[%emt 00:00:16]} Bf5 {[%clk 00:13:07]} {[%emt 00:02:29]}
30. Bf4 {[%clk 00:12:42]} {[%emt 00:02:37]} Bxb1 {[%clk 00:10:26]} {[%emt
00:03:11]} 31. Bxe5 {[%clk 00:13:03]} {[%emt 00:00:09]} dxe5 {[%clk 00:10:53]}
{[%emt 00:00:03]} 32. Qxb1 {[%clk 00:13:28]} {[%emt 00:00:05]} e4 {[%clk
00:11:18]} {[%emt 00:00:05]} 33. d6 {[%clk 00:04:25]} {[%emt 00:09:34]} Qg7
{[%clk 00:09:28]} {[%emt 00:02:19]} 34. Qf1 {[%clk 00:04:29]} {[%emt 00:00:26]}
Qh6 {[%clk 00:07:53]} {[%emt 00:02:06]} 35. Rf7 {[%clk 00:02:49]} {[%emt
00:02:09]} Qe3+ {[%clk 00:06:50]} {[%emt 00:01:33]} 36. Kh2 {[%clk 00:01:19]}
{[%emt 00:01:59]} Qd2 {[%clk 00:00:59]} {[%emt 00:06:22]} 37. Qf6 {[%clk
00:01:23]} {[%emt 00:00:26]} 1-0